bitfinex-derivatives/quotes_ETHF0:USTF0_20250110
["timestamp","ask_amount","ask_price","bid_price","bid_amount"]
[1736522491063,3.2078,3228.3,3227.9,0.30984]
[1736522491367,7.6149,3228.7,3227.3,8.45086463]
[1736522491666,3.2078,3229.1,3228.1,3.2078]
[1736522492060,0.30974,3229.0,3228.2,0.30981]
[1736522492369,0.30976,3228.8,3228.2,0.30981]
[1736522492570,0.30974,3229.0,3228.0,0.30983]
[1736522492776,0.30978,3228.7,3228.0,0.30983]
[1736522492961,3.2078,3229.1,3228.0,0.30983]
[1736522493165,0.30978,3228.6,3228.0,0.30983]
[1736522493367,0.30975,3228.9,3228.3,0.3098]
[1736522493670,3.2078,3229.1,3228.7,0.30976]
[1736522493877,3.2078,3229.1,3228.3,1.812]
[1736522493878,3.2078,3229.1,3228.6,0.30977]
[1736522494067,3.2078,3229.1,3228.6,3.2078]
[1736522494268,3.2078,3229.1,3228.3,5.24206463]
[1736522494467,3.2078,3229.5,3228.6,3.2078]
[1736522494673,3.2078,3229.5,3229.1,0.30973]
[1736522494969,3.2078,3229.5,3229.0,3.2078]
[1736522495169,3.2078,3229.5,3229.1,40.8]
[1736522495664,4.5435,3229.9,3229.2,3.2078]
[1736522495867,4.5435,3229.9,3229.1,40.8]
[1736522495868,3.2078,3230.4,3229.8,3.43006463]
[1736522496474,3.2078,3230.4,3229.9,0.30965]
[1736522496773,3.2078,3230.4,3229.4,2.357]
[1736522496774,3.51741,3230.4,3229.4,2.357]
[1736522496967,3.51741,3230.4,3229.4,2.6094194]
[1736522496968,3.2078,3230.4,3229.4,2.6094194]
[1736522497178,3.51736,3230.9,3230.3,0.30961]
[1736522497374,3.51736,3230.9,3229.8,6.63786463]
[1736522497375,3.2078,3230.9,3229.8,6.63786463]
[1736522497777,0.30958,3230.7,3230.0,0.30964]
[1736522498068,3.2078,3230.5,3229.8,6.63786463]
[1736522498268,0.30962,3230.3,3229.7,0.30967]
[1736522498468,3.2078,3230.5,3229.6,3.2078]
[1736522498665,3.2078,3230.5,3229.9,0.30964]
[1736522498870,3.2078,3230.5,3229.6,3.2078]
[1736522498871,3.2078,3230.5,3229.8,3.43006463]
[1736522499071,3.2078,3230.5,3230.0,0.30963]
[1736522499266,3.2078,3230.5,3229.8,3.43006463]
[1736522499674,3.2078,3230.5,3230.4,0.3096]
[1736522499873,3.2078,3230.5,3230.3,0.30961]
[1736522500168,3.2078,3230.5,3230.1,3.2078]
[1736522500169,3.2078,3230.5,3230.1,0.30963]
[1736522500475,3.2078,3230.9,3230.1,3.2078]
[1736522500676,3.2078,3230.9,3230.3,3.43006463]
[1736522500872,3.2078,3231.5,3230.6,0.30958]
[1736522501169,3.2078,3231.5,3230.7,40.8]
[1736522501474,3.2078,3231.5,3230.9,0.30955]
[1736522501871,3.5173,3231.5,3230.8,3.2078]
[1736522502171,3.2078,3231.5,3230.9,0.30956]
[1736522502475,3.2078,3231.5,3230.8,3.2078]
[1736522502476,3.5173,3231.5,3230.7,40.8]
[1736522502676,3.2078,3231.5,3230.7,40.8]
[1736522502878,3.51731,3231.5,3230.7,41.10957]
[1736522503271,3.2078,3231.5,3230.7,40.8]
[1736522503470,3.2078,3231.9,3230.8,6.63786463]
[1736522503965,3.2078,3231.9,3231.3,3.43006463]
[1736522504273,3.2078,3231.9,3231.2,3.2078]
[1736522504274,0.30948,3231.7,3231.2,3.2078]
[1736522504577,3.2078,3232.4,3231.2,3.2078]
[1736522504780,3.2078,3231.9,3230.8,5.60306463]
[1736522504969,0.30948,3231.7,3230.8,5.60306463]
[1736522505170,0.30948,3231.8,3230.9,41.10955]
[1736522505370,3.5173,3231.5,3230.8,5.85289687]
[1736522505566,3.2078,3231.5,3230.8,3.43006463]
[1736522505775,3.2078,3231.5,3230.9,0.30956]
[1736522506076,3.2078,3231.5,3230.8,3.43006463]
[1736522506474,3.2078,3231.5,3230.8,5.24106463]
[1736522506674,3.2078,3231.5,3230.3,3.43006463]
[1736522506877,3.2078,3231.4,3229.8,8.87926463]
[1736522507077,1.811,3232.1,3229.8,8.87926463]
[1736522507078,3.2078,3230.6,3229.8,8.87926463]
[1736522507471,3.2078,3230.2,3229.8,6.63786463]
[1736522507777,3.2078,3230.2,3228.7,2.2414]
[1736522507778,0.30971,3229.4,3228.8,3.43006463]
[1736522508076,0.30976,3228.8,3228.4,7.23511178]
[1736522508278,0.30976,3228.8,3228.3,3.43006463]
[1736522508279,3.2078,3229.2,3228.6,3.2078]
[1736522508475,0.30971,3229.3,3228.7,41.10976]
[1736522508672,3.2078,3229.7,3228.7,40.8]
[1736522508878,0.30973,3229.1,3228.7,40.8]
[1736522509178,3.2078,3229.3,3228.2,3.2078]
[1736522509387,0.30978,3228.6,3228.2,3.2078]
[1736522509578,3.2078,3228.9,3228.2,3.2078]
[1736522509782,3.2078,3228.9,3228.3,40.8]
[1736522509973,3.2078,3228.9,3228.3,44.23006463]
[1736522510273,3.2078,3228.9,3228.6,0.30977]
[1736522510477,3.2078,3228.9,3228.4,1.811]
[1736522510675,3.2078,3228.9,3228.5,0.30979]
[1736522510981,0.30979,3228.5,3228.3,40.8]
[1736522511181,3.2078,3228.9,3228.3,40.8]
[1736522511376,0.30977,3228.7,3228.3,40.8]
[1736522511571,0.30979,3228.5,3228.3,40.8]
[1736522511780,0.3098,3228.4,3228.3,40.8]
[1736522512095,3.51759,3228.5,3227.9,0.30984]
[1736522512479,3.51759,3228.5,3228.0,40.8]
[1736522512480,3.2078,3228.5,3228.0,40.8]
[1736522512775,3.2078,3228.5,3227.3,6.63786463]
[1736522512776,3.2078,3228.1,3227.3,3.43006463]
[1736522512978,3.2078,3227.7,3226.9,3.2078]
[1736522513175,3.2078,3227.7,3226.8,6.63786463]
[1736522513375,3.2078,3227.9,3227.7,0.30986]
[1736522513580,3.2078,3228.9,3227.8,6.63786463]
[1736522513886,3.2078,3228.9,3227.9,1.811]
[1736522514085,3.2078,3228.9,3227.8,3.43006463]
[1736522514382,3.2078,3228.5,3227.3,6.63786463]
[1736522514679,3.2078,3228.1,3227.3,6.63786463]
[1736522514884,3.2078,3228.1,3227.1,4.0082]
[1736522515083,0.30984,3228.0,3227.4,0.30989]
[1736522515278,3.2078,3228.1,3227.1,4.0082]
[1736522515478,0.30984,3228.0,3227.4,0.30989]
[1736522515780,3.2078,3228.9,3227.9,6.63786463]
[1736522515978,3.2078,3228.9,3228.5,0.30979]
[1736522516284,3.2078,3228.9,3228.4,3.51759]
[1736522516585,3.51755,3228.9,3228.2,0.30981]
[1736522516780,3.2078,3228.9,3228.5,0.30979]
[1736522516981,3.2078,3229.3,3228.2,1.812]
[1736522517184,3.51751,3229.3,3228.7,0.30976]
[1736522517379,3.2078,3229.3,3228.2,1.812]
[1736522517586,3.2078,3229.3,3228.8,40.8]
[1736522517777,0.30964,3230.0,3229.4,0.30969]
[1736522518087,3.2078,3230.4,3229.1,3.2078]
[1736522518388,3.2078,3229.6,3229.1,3.2078]
[1736522518878,0.30969,3229.5,3229.0,0.30973]
[1736522519079,3.2078,3229.1,3228.8,40.8]
[1736522519281,0.30974,3229.0,3228.8,40.8]
[1736522519488,3.2078,3229.1,3227.7,1.811]
[1736522519782,3.51757,3228.7,3228.2,0.30981]
[1736522519977,0.30978,3228.6,3228.1,0.30982]
[1736522520181,3.2078,3228.7,3227.8,40.8]
[1736522520386,3.2078,3229.2,3227.9,6.63786463]
[1736522520582,3.2078,3228.8,3227.9,6.63786463]
[1736522520887,3.2078,3228.8,3227.8,40.8]
[1736522520888,0.30978,3228.6,3228.0,0.30983]
[1736522521082,2.3261,3229.3,3227.8,40.8]
[1736522521083,3.2078,3228.4,3227.8,40.8]
[1736522521286,3.2078,3228.0,3227.8,40.8]
[1736522521483,3.2078,3228.0,3227.9,0.30984]
[1736522521783,0.30977,3228.7,3227.8,40.8]
[1736522521987,3.2078,3229.2,3228.0,0.77459]
[1736522522184,3.2078,3229.6,3228.9,3.43006463]
[1736522522482,3.2078,3230.6,3229.2,3.2078]
[1736522522685,0.30965,3230.0,3229.4,0.3097]
[1736522522887,3.2078,3229.8,3229.0,1.811]
[1736522523085,3.2078,3229.8,3228.7,3.2078]
[1736522523285,3.2078,3229.4,3228.2,1.811]
[1736522523488,0.30974,3229.0,3228.5,0.30978]
[1736522523688,0.30972,3229.2,3228.7,0.30976]
[1736522523991,0.30973,3229.2,3228.6,0.30977]
[1736522524180,5.5448,3229.9,3228.6,3.2078]
[1736522524485,0.3097,3229.4,3228.5,3.20647794]
[1736522524691,3.2078,3229.5,3228.5,3.20647794]
[1736522524880,3.2078,3229.5,3228.2,2.06227861]
[1736522524881,3.2078,3229.5,3228.6,3.2078]
[1736522525082,0.30971,3229.4,3228.9,0.30975]
[1736522525283,3.2078,3229.5,3228.2,2.06227861]
[1736522525284,3.2078,3229.5,3229.0,3.2078]
[1736522525483,3.2078,3229.5,3229.4,0.3097]
[1736522525685,2.1903,3230.8,3229.4,44.0078]
[1736522525686,3.2078,3230.4,3229.4,44.0078]
[1736522525886,5.3981,3230.8,3229.4,40.8]
[1736522526191,3.2078,3230.4,3229.4,40.8]
[1736522526788,3.51741,3230.4,3229.3,3.2078]
[1736522526986,0.30963,3230.2,3229.8,3.2078]
[1736522527287,2.1903,3230.8,3229.0,3.2078]
[1736522527288,3.2078,3230.0,3229.0,3.2078]
[1736522527490,0.3097,3229.4,3229.0,3.51753]
[1736522527793,0.3097,3229.5,3229.1,0.30972]
[1736522528087,3.2078,3229.6,3228.7,40.8]
[1736522528287,3.2078,3229.2,3227.9,3.2078]
[1736522528496,0.30969,3229.5,3228.9,0.30975]
[1736522528684,0.30973,3229.2,3228.8,0.30975]
[1736522529195,3.98201,3229.6,3228.5,44.0078]
[1736522529488,0.3098,3228.4,3228.0,0.30983]
[1736522529687,3.2078,3228.8,3227.8,5.5256]
[1736522529688,3.2078,3228.8,3228.1,0.30982]
[1736522529896,3.2078,3228.8,3228.2,3.2078]
[1736522530090,3.2078,3229.3,3229.2,0.30972]
[1736522530290,2.2371,3229.8,3229.4,0.30969]
[1736522530291,5.75456,3229.8,3229.4,0.30969]
[1736522530599,4.74618139,3229.6,3229.1,3.2078]
[1736522530793,4.74618139,3229.6,3228.5,5.4043]
[1736522530995,4.74618139,3229.6,3228.5,6.17877]
[1736522531194,5.4449,3229.8,3228.5,5.4043]
[1736522531395,0.30978,3228.6,3228.3,2.1208]
[1736522531698,0.30971,3229.3,3228.9,0.30974]
[1736522531906,3.2078,3229.6,3228.8,3.2078]
[1736522532107,3.2078,3229.6,3229.4,0.30969]
[1736522532308,0.3097,3229.5,3228.9,0.30975]
[1736522532495,3.2078,3229.6,3228.8,3.2078]
[1736522533308,0.30971,3229.4,3229.1,0.30972]
[1736522533498,3.2078,3229.6,3229.2,0.30971]
[1736522533706,0.3097,3229.4,3228.8,3.2078]
[1736522533904,0.30972,3229.2,3229.0,0.30973]
[1736522534107,3.2078,3229.2,3228.0,5.4608]
[1736522534405,0.30974,3229.0,3228.2,0.77454]
[1736522534605,3.51752,3229.2,3228.9,0.30974]
[1736522534806,3.2078,3229.2,3228.3,3.2078]
[1736522535009,0.30973,3229.1,3228.7,0.30976]
[1736522535207,0.30973,3229.1,3228.8,0.30976]
[1736522535512,3.2078,3229.2,3227.9,44.0078]
[1736522535809,3.2078,3228.8,3227.9,44.0078]
[1736522536004,0.77442,3228.7,3227.9,44.0078]
[1736522536201,3.51756,3228.8,3227.9,44.0078]
[1736522536502,3.2078,3229.5,3228.3,3.2078]
[1736522536703,4.74618139,3229.4,3228.3,3.2078]
[1736522537210,3.2078,3229.1,3228.3,3.2078]
[1736522537508,4.74618139,3229.4,3228.3,3.2078]
[1736522537709,4.74618139,3229.4,3229.1,0.30973]
[1736522537910,3.2078,3229.5,3229.1,0.30973]
[1736522538211,0.3097,3229.4,3229.2,40.8]
[1736522538407,6.98328139,3229.8,3229.2,40.8]
[1736522538705,4.74618139,3229.8,3229.2,40.8]
[1736522539112,3.2078,3230.1,3229.2,44.0078]
[1736522539308,3.2078,3229.7,3229.2,40.8]
[1736522539505,0.30971,3229.3,3229.2,40.8]
[1736522540105,0.77427,3229.4,3228.8,3.2078]
[1736522540307,1.08402,3229.2,3228.4,1.811]
[1736522540508,0.30973,3229.1,3228.8,0.30975]
[1736522540703,3.2078,3229.3,3228.4,5.0188]
[1736522540911,3.2078,3229.7,3228.5,0.77447]
[1736522541111,3.2078,3229.7,3228.4,5.0188]
[1736522541309,0.7743,3229.2,3228.4,5.32859]
[1736522541607,0.30977,3228.7,3228.4,5.32859]
[1736522541806,3.2078,3229.3,3228.4,3.2078]
[1736522542207,3.51751,3229.3,3229.0,0.30973]
[1736522542410,3.2078,3229.3,3228.3,40.8]
[1736522542610,3.2078,3229.3,3227.9,3.2078]
[1736522542611,0.30978,3228.6,3227.9,3.2078]
[1736522542809,0.30982,3228.2,3227.9,3.2078]
[1736522543012,3.2078,3228.7,3227.6,0.24761014]
[1736522543013,0.77445,3228.6,3227.7,40.8]
[1736522543514,0.30978,3228.6,3228.4,0.30979]
[1736522543707,0.30977,3228.7,3228.0,3.2078]
[1736522543903,4.74618139,3228.8,3228.0,3.2078]
[1736522544109,4.74618139,3228.8,3228.4,3.2078]
[1736522544409,8.72830139,3229.2,3227.9,6.63786463]
[1736522544709,7.95398139,3229.2,3228.6,3.2078]
[1736522545012,7.95398139,3229.2,3228.7,3.2078]
[1736522545013,0.30974,3229.0,3228.7,3.2078]
[1736522545220,5.05591139,3229.2,3228.8,0.30975]
[1736522545419,0.30973,3229.1,3228.8,0.30976]
[1736522545612,0.30973,3229.1,3228.7,3.2078]
[1736522545811,0.30976,3228.8,3228.7,3.2078]
[1736522546112,0.77431,3229.2,3228.2,2.1552]
[1736522546314,0.30978,3228.6,3228.3,0.3098]
[1736522546510,3.2078,3228.9,3227.7,41.04798104]
[1736522546710,3.2078,3228.3,3227.7,40.8]
[1736522546912,0.30986,3227.7,3227.4,0.30989]
[1736522547113,3.2078,3228.3,3227.2,5.363]
[1736522547420,3.2078,3227.9,3227.3,40.8]
[1736522547611,3.2078,3227.9,3226.8,3.2078]
[1736522547811,0.30983,3228.1,3227.3,0.3099]
[1736522548012,0.30988,3227.6,3227.2,0.3099]
[1736522548207,5.4909,3228.3,3226.9,40.8]
[1736522548511,0.30988,3227.6,3227.3,0.3099]
[1736522548821,4.74618139,3228.1,3227.2,3.2078]
[1736522549016,4.74618139,3228.1,3227.7,3.2078]
[1736522549315,5.05601139,3228.1,3227.8,0.30985]
[1736522549515,5.05601139,3228.1,3227.7,3.51766]
[1736522549718,4.74618139,3228.1,3227.7,3.2078]
[1736522550212,3.2078,3228.3,3227.7,3.2078]
[1736522550421,0.30984,3228.0,3227.7,3.51766]
[1736522550713,3.2078,3228.3,3227.7,3.2078]
[1736522550917,0.30985,3227.8,3227.7,3.2078]
[1736522551221,3.2078,3228.3,3226.9,40.8]
[1736522551222,3.2078,3227.9,3226.9,40.8]
[1736522551524,0.30992,3227.1,3226.7,0.30995]
[1736522551708,0.30993,3227.0,3226.7,0.30995]
[1736522551912,0.30994,3226.9,3226.8,40.8]
[1736522553118,5.52092139,3227.4,3226.4,3.2078]
[1736522553319,0.77476,3227.3,3226.4,3.2078]
[1736522553520,0.77476,3227.3,3226.5,40.8]
[1736522553722,4.74618139,3227.4,3226.5,40.8]
[1736522553917,4.74618139,3227.0,3226.5,40.8]
[1736522554119,4.74618139,3227.0,3226.9,0.30994]
[1736522554416,4.70368139,3227.0,3226.9,0.30994]
[1736522554618,4.66118139,3227.0,3226.9,0.30994]
[1736522554814,3.2078,3227.5,3226.9,40.8]
[1736522555024,0.3099,3227.4,3227.0,0.30993]
[1736522555221,0.3099,3227.4,3227.1,0.30992]
[1736522555418,0.3099,3227.4,3226.9,40.8]
[1736522555616,0.3099,3227.4,3227.0,0.30992]
[1736522555820,3.2078,3227.5,3226.9,40.8]
[1736522556020,3.51769,3227.5,3227.1,0.30992]
[1736522556318,3.2078,3227.5,3226.9,40.8]
[1736522556522,0.30992,3227.1,3226.9,40.8]
[1736522556831,0.30989,3227.4,3227.1,0.30992]
[1736522557015,3.2078,3227.5,3226.9,40.8]
[1736522557214,0.30989,3227.4,3226.9,41.10993]
[1736522557418,3.2078,3227.5,3227.1,0.30992]
[1736522557913,0.30989,3227.5,3226.9,40.8]
[1736522558117,0.77466,3227.7,3226.9,40.8]
[1736522558526,0.30993,3227.1,3226.9,40.8]
[1736522558723,0.77466,3227.7,3226.9,40.8]
[1736522558919,0.3099,3227.4,3227.0,0.30993]
[1736522559122,0.30991,3227.3,3226.9,41.10993]
[1736522559320,3.2078,3227.6,3226.9,40.8]
[1736522559524,0.3099,3227.4,3227.0,0.30993]
[1736522559828,3.2078,3227.6,3226.9,40.8]
[1736522560029,3.2078,3227.6,3226.8,3.2078]
[1736522560229,0.30994,3226.9,3226.8,3.2078]
[1736522560615,0.30998,3226.5,3226.4,3.2078]
[1736522560818,0.31001,3226.2,3225.9,0.31003]
[1736522561024,0.31001,3226.2,3225.4,12.2072897]
[1736522561025,0.31005,3225.8,3225.5,0.31007]
[1736522561325,3.2078,3226.6,3225.6,40.8]
[1736522561630,3.2078,3226.6,3225.7,3.2078]
[1736522562119,5.93272674,3227.0,3226.4,3.2078]
[1736522562728,0.30995,3226.8,3226.5,0.30998]
[1736522562927,5.93272674,3227.0,3226.4,3.2078]
[1736522563327,3.2078,3226.8,3225.9,3.2078]
[1736522563526,4.453,3227.1,3226.3,3.2078]
[1736522563830,0.30995,3226.8,3226.5,0.30997]
[1736522564018,4.453,3227.1,3226.3,3.2078]
[1736522564224,0.30999,3226.4,3226.3,3.2078]
[1736522564427,3.2078,3227.0,3226.3,3.2078]
[1736522564622,0.30996,3226.7,3226.4,0.30998]
[1736522564928,3.98265,3227.0,3225.9,6.63786463]
[1736522565134,0.30994,3227.0,3226.7,0.30995]
[1736522565423,5.93272674,3227.5,3226.7,3.2078]
[1736522565723,5.93272674,3227.5,3227.1,3.2078]
[1736522566025,5.93272674,3227.5,3227.3,0.3099]
[1736522566227,5.93272674,3227.5,3227.1,3.2078]
[1736522566725,5.93272674,3227.5,3227.1,44.0078]
[1736522566932,0.30991,3227.3,3227.1,44.0078]
[1736522567232,0.3099,3227.4,3227.1,44.0078]
[1736522567528,0.30987,3227.7,3227.3,0.3099]
[1736522567726,0.30987,3227.7,3227.1,44.0078]
[1736522568128,0.30987,3227.7,3227.3,0.3099]
[1736522568329,0.30988,3227.5,3227.2,0.30991]
[1736522568529,3.2078,3228.2,3227.1,44.0078]
[1736522569033,0.30986,3227.8,3227.4,0.30989]
[1736522569230,0.30985,3227.9,3227.5,0.30988]
[1736522569734,0.77457,3228.1,3227.1,44.0078]
[1736522570126,0.77457,3228.1,3225.8,1.55021]
[1736522570127,0.30991,3227.2,3226.7,5.0188]
[1736522570431,0.77466,3227.7,3226.7,0.30995]
[1736522570432,3.2078,3227.4,3226.7,0.30995]
[1736522570632,0.30993,3227.1,3226.7,0.30995]
[1736522570932,3.2078,3227.4,3227.0,0.30993]
[1736522571133,0.30988,3227.6,3227.2,0.30991]
[1736522571332,3.2078,3227.8,3226.7,3.2078]
[1736522571533,9.14052674,3227.8,3227.1,3.2078]
[1736522571829,0.30991,3227.2,3227.1,3.2078]
[1736522572027,3.2078,3227.4,3226.6,3.2078]
[1736522572226,0.30995,3226.8,3226.4,3.74004463]
[1736522572426,0.30993,3227.1,3226.7,0.30995]
[1736522572632,3.2078,3227.4,3226.4,3.43006463]
[1736522572831,0.30994,3227.0,3226.6,0.30996]
[1736522573030,3.2078,3227.4,3226.3,40.8]
[1736522573233,3.2078,3227.0,3226.2,3.2078]
[1736522573432,0.31,3226.3,3226.2,3.2078]
[1736522573835,3.2078,3226.6,3225.9,44.54010463]
[1736522574128,0.7749,3226.8,3223.0,16.59327865]
[1736522574129,3.2078,3226.2,3225.6,0.31006]
[1736522574326,0.30998,3226.5,3226.2,0.31]
[1736522574532,0.30999,3226.4,3226.1,0.31001]
[1736522574838,0.30998,3226.5,3226.2,0.31]
[1736522575037,4.5908,3226.9,3225.9,6.63786463]
[1736522575337,4.5908,3226.9,3225.9,3.2078]
[1736522575338,0.31003,3226.0,3225.9,3.2078]
[1736522575632,0.77488,3226.8,3226.1,0.31001]
[1736522575941,0.31003,3226.0,3225.8,3.51784]
[1736522576133,0.77493,3226.6,3225.9,0.31003]
[1736522576334,3.2078,3226.7,3226.0,0.31002]
[1736522576335,0.31002,3226.2,3226.0,0.31002]
[1736522576537,3.2078,3226.7,3225.9,0.31004]
[1736522576538,0.31002,3226.1,3225.9,0.31004]
[1736522576834,0.31004,3225.9,3225.8,3.2078]
[1736522577030,3.2078,3226.7,3225.7,0.31005]
[1736522577031,0.31003,3226.0,3225.7,0.31005]
[1736522577236,3.2078,3226.7,3225.9,3.2078]
[1736522577537,0.77495,3226.5,3225.6,40.8]
[1736522577731,0.31004,3225.9,3225.7,0.31005]
[1736522577932,3.2078,3226.3,3225.6,40.8]
[1736522578133,10.52352674,3226.9,3225.6,40.8]
[1736522578134,0.77491,3226.7,3225.6,40.8]
[1736522578333,0.31,3226.4,3226.1,0.31001]
[1736522578540,3.2078,3226.8,3225.9,3.43006463]
[1736522578931,0.31002,3226.2,3225.9,3.74009463]
[1736522579127,0.31001,3226.2,3226.0,0.31003]
[1736522579330,0.31001,3226.2,3225.9,0.31003]
[1736522580040,0.7749,3226.7,3225.8,0.31004]
[1736522580237,3.2078,3226.8,3225.7,3.2078]
[1736522580438,0.31004,3225.9,3225.7,3.2078]
[1736522580659,3.2078,3226.0,3225.3,3.2078]
[1736522580845,0.77514,3225.8,3224.9,3.43006463]
[1736522581137,3.2078,3226.0,3225.3,3.2078]
[1736522581440,0.31005,3225.8,3225.5,0.31007]
[1736522581642,8.22642674,3226.2,3225.3,3.2078]
[1736522581842,5.93272674,3226.2,3225.7,3.2078]
[1736522582142,0.31002,3226.1,3225.8,0.31004]
[1736522582340,0.77498,3226.4,3225.4,3.43006463]
[1736522582545,0.31004,3225.9,3225.6,0.31006]
[1736522582942,0.31001,3226.2,3225.9,0.31003]
[1736522583139,3.2078,3226.5,3225.7,3.2078]
[1736522583343,0.31007,3225.6,3225.4,5.71916463]
[1736522583639,13.73132674,3226.9,3225.4,3.43006463]
[1736522583840,13.73132674,3226.9,3226.1,3.2078]
[1736522584144,9.45046674,3226.9,3226.4,3.43006463]
[1736522584339,5.93272674,3226.9,3226.8,0.30995]
[1736522584544,2.2937,3227.3,3226.6,3.2078]
[1736522584744,0.30996,3226.7,3226.6,3.2078]
[1736522584937,2.2937,3227.3,3226.7,0.30996]
[1736522585137,0.30996,3226.7,3226.6,3.2078]
[1736522585337,3.2078,3227.2,3226.6,3.2078]
[1736522585536,2.2937,3227.3,3226.6,3.2078]
[1736522585735,5.93272674,3227.5,3227.0,3.2078]
[1736522585945,4.7995625,3227.3,3227.2,0.30991]
[1736522587335,0.30989,3227.5,3227.2,0.30991]
[1736522587542,2.1512,3227.7,3227.0,3.2078]
[1736522587748,0.30988,3227.6,3227.3,0.3099]
[1736522587947,2.46106,3227.7,3227.3,40.8]
[1736522588149,2.46106,3227.7,3227.3,41.10989]
[1736522588446,0.30988,3227.6,3227.3,0.3099]
[1736522588646,4.7995625,3227.8,3227.0,3.2078]
[1736522588841,0.30987,3227.6,3227.0,3.45647141]
[1736522589043,0.30987,3227.6,3227.3,0.30989]
[1736522589442,4.7995625,3227.8,3227.1,40.8]
[1736522589639,9.14052674,3228.0,3227.1,40.8]
[1736522589640,4.7995625,3227.9,3227.4,0.30988]
[1736522589945,4.7995625,3227.9,3227.1,40.8]
[1736522590152,0.30988,3227.6,3227.3,0.30989]
[1736522590538,0.30988,3227.6,3227.2,3.2078]
[1736522590753,0.30988,3227.6,3227.4,0.30989]
[1736522590938,0.30989,3227.5,3227.3,0.3099]
[1736522591243,4.7995625,3227.7,3227.6,0.30987]
[1736522591447,4.7995625,3227.7,3227.6,3.51767]
[1736522591648,7.11927209,3228.4,3227.6,8.2078]
[1736522591845,0.9727778,3228.4,3228.3,6.4672847]
[1736522592149,4.93932476,3228.6,3228.5,0.30979]
[1736522592352,4.93932476,3228.9,3228.3,7.9674847]
[1736522592549,4.93932476,3228.9,3228.8,6.4672447]
[1736522592753,9.49236279,3229.1,3229.0,0.30974]
[1736522593045,1.62063279,3229.1,3229.0,0.30974]
[1736522593250,1.62063279,3229.1,3229.0,5.30974]
[1736522593553,9.1214987,3229.3,3229.2,0.30972]
[1736522593755,3.2078,3230.4,3229.2,3.2078]
[1736522594047,0.30964,3230.1,3229.5,0.30969]
[1736522594243,0.30964,3230.1,3229.6,0.30968]
[1736522594645,0.30963,3230.2,3229.6,0.30967]
[1736522594948,0.30959,3230.6,3229.8,0.30966]
[1736522595149,6.8959,3230.7,3229.7,3.2078]
[1736522595346,3.2078,3231.6,3230.5,6.6106369]
[1736522595851,3.2078,3231.6,3230.6,0.30958]
[1736522596149,3.2078,3231.6,3230.5,6.6106369]
[1736522596351,0.30956,3230.9,3230.5,6.6106369]
[1736522596546,3.2078,3231.2,3230.5,6.6106369]
[1736522596752,3.2078,3231.6,3230.5,6.6106369]
[1736522597051,0.3095,3231.5,3230.5,6.6106369]
[1736522597256,0.3095,3231.5,3230.9,3.51735]
[1736522597551,3.2078,3231.6,3230.9,3.2078]
[1736522597749,4.6729,3231.7,3230.6,40.8]
[1736522597750,4.6729,3231.7,3231.3,3.2078]
[1736522597953,3.2078,3232.0,3231.5,3.4028369]
[1736522598347,0.3094,3232.6,3231.9,0.30946]
[1736522598544,3.2078,3232.8,3232.2,0.30943]
[1736522598748,3.2078,3232.8,3232.0,3.4028369]
[1736522598749,0.30939,3232.7,3232.0,3.7122769]
[1736522598944,7.8572,3233.2,3232.2,3.2078]
[1736522599155,0.30935,3233.1,3232.6,3.2078]
[1736522599353,4.6494,3233.2,3232.6,3.2078]
[1736522599555,7.8572,3233.2,3232.0,6.6106369]
[1736522599752,0.3094,3232.6,3232.0,6.9200869]
[1736522599952,7.8572,3233.2,3232.0,6.6106369]
[1736522600148,0.30939,3232.7,3232.0,6.9200769]
[1736522600350,3.2078,3232.8,3232.0,6.6106369]
[1736522600547,0.3094,3232.6,3232.0,3.4028369]
[1736522600757,4.6494,3233.2,3232.0,6.6106369]
[1736522601062,2.1829,3233.6,3233.0,0.30935]
[1736522601262,2.1829,3233.6,3232.9,3.2078]
[1736522601454,2.1829,3233.6,3233.0,3.7121869]
[1736522601753,2.1829,3233.6,3233.0,3.71101195]
[1736522601960,2.1829,3233.6,3233.0,3.40166195]
[1736522602557,0.30932,3233.5,3233.0,3.40166195]
[1736522602754,0.30933,3233.3,3232.9,3.2078]
[1736522602959,0.77313,3234.2,3233.5,0.3093]
[1736522602960,0.30925,3234.2,3233.5,0.3093]
[1736522603162,5.5358,3234.7,3233.6,44.0078]
[1736522603451,3.2078,3235.6,3234.4,3.2078]
[1736522603758,3.2078,3235.6,3235.1,0.30915]
[1736522603962,3.2078,3235.6,3234.9,6.6106369]
[1736522604256,0.30915,3235.2,3234.5,0.30921]
[1736522604452,3.2078,3235.2,3234.2,3.2078]
[1736522604653,0.30915,3235.1,3234.2,3.2078]
[1736522604856,0.30917,3235.0,3234.3,0.30923]
[1736522605054,3.2078,3234.8,3234.2,3.2078]
[1736522605252,3.2078,3234.8,3233.9,0.30927]
[1736522605458,3.51703,3234.3,3233.8,3.2078]
[1736522605657,3.00212,3235.4,3233.8,3.2078]
[1736522605658,3.2078,3234.8,3233.8,3.2078]
[1736522605957,3.2078,3234.4,3233.8,3.2078]
[1736522606349,3.2078,3234.4,3234.0,3.4028369]
[1736522606554,3.2078,3234.4,3234.3,0.30923]
[1736522606855,7.6433,3235.5,3234.3,3.2078]
[1736522607057,0.30917,3235.0,3234.5,0.30921]
[1736522607256,7.6433,3235.5,3234.4,0.30922]
[1736522607457,7.6433,3235.5,3234.7,3.2078]
[1736522607654,5.4371,3235.9,3235.1,3.2078]